fUST/lending_fUST_20251214
["ID","MTS","AMOUNT","RATE_DAILY","PERIOD"]
[398473936,1765713038774,-300.0,0.00018175,2]
[398473938,1765713038788,-300.0,0.00018175,2]
[398473940,1765713038799,-300.0,0.00018175,2]
[398473942,1765713038811,-300.0,0.00018175,2]
[398473945,1765713038825,-600.0,0.00018175,2]
[398473947,1765713038837,-1000.0,0.00018175,2]
[398473949,1765713038851,-1000.0,0.00018175,2]
[398473952,1765713038865,-1000.0,0.00018175,2]
[398473954,1765713038878,-1000.0,0.00018175,2]
[398473956,1765713038893,-1000.0,0.00018175,2]
[398473959,1765713038906,-1008.7997,0.00018175,2]
[398473961,1765713038920,-180.39499458,0.00018239,2]
[398473963,1765713038932,-500.0,0.00018588,2]
[398473966,1765713038944,-671.03,0.00018588,3]
[398473968,1765713038956,-335.52,0.00018588,3]
[398473970,1765713038968,-167.76,0.00018588,3]
[398473972,1765713038981,-503.29,0.00018588,3]
[398473975,1765713038993,-168.80156669,0.00018588,2]
[398473977,1765713039008,-500.0,0.00018588,2]
[398473980,1765713039022,-150.0,0.00018588,2]
[398473982,1765713039035,-150.0,0.00018588,2]
[398473984,1765713039046,-201.94711698,0.00018588,2]
[398473986,1765713039058,-150.0,0.00018588,2]
[398473988,1765713039070,-340.81550185,0.00018596,2]
[398473991,1765713039081,-151.0,0.00018598,2]
[398473993,1765713039094,-435497.60921202,0.00018598,2]
[398473997,1765713039111,-2686.87215821,0.00018598,2]
[398474001,1765713039127,-33149.73489671,0.00018598,2]
[398474004,1765713039142,-553.19985832,0.00018598,2]
[398474007,1765713039157,-1053.67641307,0.00018598,2]
[398474268,1765713042865,-250.0,0.00017621,2]
[398474270,1765713042874,-250.0,0.00017621,2]
[398474273,1765713042884,-250.0,0.00017621,2]
[398474276,1765713042896,-272.83088422,0.00017621,2]
[398474278,1765713042905,-466.93723312,0.00017627,2]
[398474280,1765713042915,-251.06745187,0.00017627,2]
[398474281,1765713042924,-203.87070892,0.00017631,2]
[398474282,1765713042933,-2602.6070181,0.00018598,2]
[398474283,1765713042944,-28101.2518715,0.00018598,2]
[398474284,1765713042955,-1796.49584665,0.00018598,2]
[398474293,1765713042982,-1000.0,0.00018598,2]
[398474295,1765713043371,-2522.86261638,0.00018598,2]
[398474296,1765713043509,-381035.69010904,0.00018598,2]
[398474297,1765713043519,-697.65,0.00018625,2]
[398474298,1765713043529,-2000.0,0.00018697,2]
[398474299,1765713043539,-595.37131296,0.00018717,2]
[398474300,1765713043548,-212.31325889,0.00018717,2]
[398474301,1765713043558,-500.68739911,0.00018725,2]
[398474302,1765713043567,-505.91914622,0.00018725,2]
[398474303,1765713043577,-150.0,0.00018725,2]
[398474304,1765713043586,-150.62462407,0.00018725,2]
[398474305,1765713043595,-200.0,0.00018725,2]
[398474306,1765713043605,-151.0,0.000188,2]
[398474307,1765713043614,-403304.45604942,0.0001881,2]
[398474308,1765713043624,-150.0,0.00018862,2]
[398474309,1765713043633,-682.28421845,0.00018882,2]
[398474310,1765713043642,-151.0,0.000189,2]
[398474311,1765713043651,-151.0,0.000189,2]
[398474312,1765713043660,-153.0,0.00018904,2]
[398474313,1765713043670,-153.0,0.00018904,2]
[398474314,1765713043679,-153.0,0.00018904,2]
[398474315,1765713043688,-306.0,0.00018904,2]
[398474316,1765713043698,-153.0,0.00018904,2]
[398474317,1765713043707,-153.0,0.00018904,2]
[398474318,1765713043716,-306.0,0.00018904,2]
[398474319,1765713043726,-153.0,0.00018904,2]
[398474320,1765713043735,-153.0,0.00018904,2]
[398474321,1765713043744,-306.0,0.00018904,2]
[398474322,1765713043754,-154.9892191,0.00018904,2]
[398474323,1765713043763,-153.0,0.00018904,2]
[398474324,1765713043773,-153.0,0.00018904,2]
[398474325,1765713043783,-153.0,0.00018904,2]
[398474326,1765713043792,-153.0,0.00018904,2]
[398474327,1765713043801,-153.0,0.00018904,2]
[398474328,1765713043811,-153.0,0.00018904,2]
[398474329,1765713043820,-153.0,0.00018904,2]
[398474330,1765713043829,-153.0,0.00018904,2]
[398474331,1765713043838,-153.0,0.00018904,2]
[398474332,1765713043847,-153.0,0.00018904,2]
[398474333,1765713043856,-153.0,0.00018904,2]
[398474334,1765713043865,-153.0,0.00018904,2]
[398474335,1765713043874,-156.57217215,0.00018979,2]
[398474336,1765713043883,-151.0,0.0001899,2]
[398474337,1765713043895,-150.0,0.00018999,2]
[398474338,1765713043905,-179.09111278,0.00019,2]
[398474339,1765713043914,-151.0,0.00019,2]
[398474340,1765713043924,-150.0,0.00019136,2]
[398474341,1765713043935,-2000.0,0.00019138,2]
[398474342,1765713043944,-181472.27682756,0.00019139,2]
[398474343,1765713043956,-792.54,0.00019139,2]
[398474344,1765713043976,-13358.35,0.00019139,2]
[398474372,1765713045842,-59511.06472705,0.00019139,2]
[398474373,1765713045858,-1073.23,0.00019139,2]
[398474374,1765713047285,-8918.77735449,0.00019139,2]
[398474376,1765713184023,468.30985803,0.00013273,2]
[398474380,1765713457937,150.0,0.00010761,2]
[398474381,1765713458351,150.0,0.00011274,2]
[398474382,1765713458754,150.0,0.00011786,2]
[398474390,1765713510971,3181.0,0.00019,120]
[398474393,1765713587396,150.0,9.002e-05,2]
[398474394,1765713587793,150.0,9.431e-05,2]
[398474395,1765713588186,150.0,9.859e-05,2]
[398474396,1765713588596,150.0,0.00010288,2]
[398474397,1765713589039,150.0,0.00010717,2]
[398474398,1765713589491,150.0,0.00011145,2]
[398474400,1765713671103,4343.54805077,0.00016,2]
[398474401,1765713671126,10000.01,0.00016,2]
[398474402,1765713671149,10000.01,0.00016,2]
[398474403,1765713671173,10000.01,0.00016,2]
[398474404,1765713671194,10000.01,0.00016,2]
[398474405,1765713671216,10000.01,0.00016,2]
[398474406,1765713671240,10000.01,0.00016,2]
[398474407,1765713671261,3164.39194923,0.00016,2]
[398474408,1765713718072,150.0,0.00010155,2]
[398474409,1765713718541,150.0,0.00010638,2]
[398474410,1765713718962,150.0,0.00011122,2]
[398474415,1765713783006,150.0,0.00010156,2]
[398474416,1765713783442,150.0,0.0001064,2]
[398474417,1765713783842,150.0,0.00011123,2]
[398474418,1765713784110,500.0,0.00013699,2]
[398474419,1765713784160,1000.0,0.00014247,2]
[398474420,1765713784215,1142.18096316,0.00014795,2]
[398474424,1765713848037,150.0,0.00010156,2]
[398474425,1765713848971,150.0,0.00010639,2]
[398474426,1765713849870,150.0,0.00011123,2]
[398474428,1765713915382,150.0,0.0001015,2]
[398474429,1765713915865,150.0,0.00010633,2]
[398474430,1765714043360,150.0,0.00010153,2]
[398474431,1765714043778,150.0,0.00010637,2]
[398474432,1765714044198,150.0,0.0001112,2]
[398474449,1765714108174,150.0,0.00010161,2]
[398474450,1765714108621,150.0,0.00010645,2]
[398474451,1765714109061,150.0,0.00011129,2]
[398474452,1765714109481,150.0,0.00011613,2]
[398474454,1765714109913,150.0,0.00012097,2]
[398474455,1765714110326,150.0,0.0001258,2]
[398474456,1765714110743,150.0,0.00013064,2]
[398474457,1765714111171,150.0,0.00013548,2]
[398474458,1765714111587,162.73,0.00014032,2]
[398474519,1765714176165,150.0,8.991e-05,2]
[398474520,1765714176564,150.0,9.419e-05,2]
[398474521,1765714176978,150.0,9.847e-05,2]
[398474522,1765714177498,150.0,0.00010276,2]
[398474537,1765714204610,205.81759097,0.00015807,2]
[398474556,1765714231751,-199.79329474,0.00017218,2]
[398474557,1765714231762,-209.49775426,0.00017636,2]
[398474565,1765714233001,179.766399,0.00014798,2]
[398474831,1765714240103,-290.50224574,0.00017636,2]
[398474833,1765714240113,-150.48395425,0.00017636,2]
[398474835,1765714240122,-2823.95380001,0.00017703,2]
[398474969,1765714241407,150.0,8.985e-05,2]
[398474970,1765714241824,150.0,9.413e-05,2]
[398475014,1765714242257,150.0,9.841e-05,2]
[398475062,1765714242707,150.0,0.00010268,2]
[398475075,1765714242831,-821.90400629,0.00017703,2]
[398475077,1765714242841,-280.89751018,0.00018481,2]
[398475103,1765714243115,150.0,0.00010696,2]
[398475193,1765714244026,150.0,0.00011124,2]
[398475221,1765714244452,150.0,0.00011552,2]
[398475257,1765714244884,150.0,0.0001198,2]
[398475300,1765714245298,160.76,0.00012408,2]
[398475358,1765714245884,-19.10248982,0.00018481,2]
[398475359,1765714245894,-1005.0,0.00018482,2]
[398475361,1765714245903,-264.0,0.00018486,30]
[398475363,1765714245913,-500.0,0.00018487,2]
[398475365,1765714245922,-500.0,0.00018487,2]
[398475366,1765714245931,-389.64251018,0.00018487,2]
[398475367,1765714246436,-230.91728291,0.00018487,2]
[398475368,1765714246445,-500.0,0.00018487,2]
[398475369,1765714246454,-500.0,0.00018487,2]
[398475370,1765714246463,-167.57090658,0.00018487,2]
[398475371,1765714246472,-12846.7272755,0.00018488,2]
[398475372,1765714246484,-153.0,0.00018678,2]
[398475373,1765714246492,-153.0,0.00018678,2]
[398475374,1765714246501,-153.0,0.000187,2]
[398475375,1765714246510,-1900.11115581,0.00018839,2]
[398475376,1765714246519,-300.0,0.00018856,10]
[398475377,1765714246527,-300.0,0.00018856,10]
[398475378,1765714246536,-300.0,0.00018856,10]
[398475379,1765714246546,-300.0,0.00018856,10]
[398475380,1765714246555,-300.0,0.00018856,10]
[398475381,1765714246564,-300.0,0.00018856,10]
[398475382,1765714246572,-300.0,0.00018856,10]
[398475383,1765714246581,-300.0,0.00018856,10]
[398475384,1765714246590,-300.0,0.00018856,10]
[398475385,1765714246599,-300.0,0.00018856,10]
[398475386,1765714246607,-300.0,0.00018856,10]
[398475387,1765714246616,-300.0,0.00018856,10]
[398475388,1765714246624,-300.0,0.00018856,10]
[398475389,1765714246633,-300.0,0.00018856,10]
[398475390,1765714246642,-300.0,0.00018856,10]
[398475391,1765714246650,-600.0,0.00018857,10]
[398475392,1765714246659,-324.38627926,0.00018869,2]
[398475393,1765714246669,-153.0,0.00018878,2]
[398475394,1765714246679,-227.21033457,0.000189,2]
[398475395,1765714246688,-283.096,0.000189,2]
[398475396,1765714246696,-1889.23843821,0.00018928,2]
[398475397,1765714246705,-326.85606318,0.00018938,2]
[398475398,1765714246714,-264.56904791,0.00018938,2]
[398475399,1765714246723,-13829.5504731,0.00018939,2]
[398475400,1765714246731,-391.43,0.00019029,3]
[398475401,1765714246740,-195.72,0.00019029,3]
[398475402,1765714246748,-587.17,0.00019029,3]
[398475403,1765714246757,-952.5,0.00019037,5]
[398475404,1765714246765,-158027.0679721,0.00019039,2]
[398475405,1765714246777,-2568.3774746,0.00019039,2]
[398475426,1765714263074,293.27,0.000134,2]
[398475435,1765714309448,150.0,0.00010164,2]
[398475436,1765714309974,150.0,0.00010648,2]
[398475437,1765714310303,150.0,0.00011132,2]
[398475438,1765714310693,194.62,0.00011616,2]
[398475439,1765714311149,243.27,0.000121,2]
[398475440,1765714311583,291.93,0.00012584,2]
[398475441,1765714311997,340.58,0.00013068,2]
[398475442,1765714312425,389.23,0.00013552,2]
[398475443,1765714312843,437.89,0.00014036,2]
[398475444,1765714313495,486.54,0.0001452,2]
[398475445,1765714322245,151.89,0.000134,2]
[398475446,1765714322677,151.89,0.000134,2]
[398475447,1765714323117,151.89,0.000135,2]
[398475448,1765714323451,151.89,0.000135,2]
[398475449,1765714323775,151.89,0.000135,2]
[398475450,1765714324122,151.89,0.000135,2]
[398475451,1765714324484,151.89,0.000135,2]
[398475452,1765714324887,151.89,0.000136,2]
[398475453,1765714325244,151.89,0.000136,2]
[398475454,1765714325629,151.89,0.000136,2]
[398475455,1765714326823,151.89,0.000136,2]
[398475456,1765714327221,151.89,0.000136,2]
[398475457,1765714327638,151.89,0.000137,2]
[398475458,1765714328096,151.89,0.000137,2]
[398475463,1765714328448,151.89,0.000137,2]
[398475469,1765714328799,151.89,0.000137,2]
[398475470,1765714329200,151.89,0.000137,2]
[398475476,1765714329987,151.89,0.000137,2]
[398475496,1765714330883,151.89,0.000138,2]
[398475498,1765714330928,151.89,0.000138,2]
[398475500,1765714330976,151.89,0.000138,2]
[398475501,1765714331148,151.89,0.000138,2]
[398475502,1765714331455,151.89,0.000138,2]
[398475503,1765714331760,151.89,0.000139,2]
[398475504,1765714332204,151.89,0.000139,2]
[398475505,1765714332501,151.89,0.000139,2]
[398475506,1765714332779,151.89,0.000139,2]
[398475507,1765714333077,151.89,0.000139,2]
[398475508,1765714333357,151.89,0.00014,2]
[398475509,1765714333697,151.89,0.00014,2]
[398475510,1765714334123,151.89,0.00014,2]
[398475516,1765714383122,150.0,0.00010151,2]
[398475517,1765714383308,150.0,0.00010634,2]
[398475518,1765714383410,150.0,0.00011118,2]
[398475519,1765714383852,150.0,0.00011601,2]
[398475520,1765714384320,150.0,0.00012084,2]
[398475521,1765714384746,150.0,0.00012568,2]
[398475522,1765714385158,150.0,0.00013051,2]
[398475523,1765714385607,153.17,0.00013534,2]
[398475524,1765714386046,172.32,0.00014018,2]
[398475547,1765714450775,150.0,0.00010156,2]
[398475548,1765714451196,150.0,0.00010639,2]
[398475549,1765714451621,27.84,0.00011123,2]
[398475550,1765714451651,122.16,0.00011123,2]
[398475552,1765714452064,150.0,0.00011606,2]
[398475580,1765714502565,193.33,0.000134,2]
[398475590,1765714516462,150.0,0.00010166,2]
[398475591,1765714516888,150.0,0.00010651,2]
[398475592,1765714517300,150.0,0.00011135,2]
[398475593,1765714517710,150.0,0.00011619,2]
[398475594,1765714518349,150.0,0.00012103,2]
[398475595,1765714518550,150.0,0.00012587,2]
[398475596,1765714518979,150.0,0.00013071,2]
[398475621,1765714647565,150.0,0.00010122,2]
[398475622,1765714647858,150.0,0.00010603,2]
[398475623,1765714648269,150.0,0.00011085,2]
[398475631,1765714712914,150.0,0.00010154,2]
[398475632,1765714713245,150.0,0.00010638,2]
[398475633,1765714713630,150.0,0.00011121,2]
[398475640,1765714777629,150.0,9.058e-05,2]
[398475641,1765714778036,150.0,9.489e-05,2]
[398475642,1765714778713,150.0,9.92e-05,2]
[398475643,1765714779378,150.0,0.00010352,2]
[398475644,1765714779809,150.0,0.00010783,2]
[398475645,1765714780241,150.0,0.00011214,2]
[398475646,1765714780664,150.0,0.00011646,2]
[398475649,1765714846255,150.0,0.00010201,2]
[398475650,1765714846656,150.0,0.00010686,2]
[398475651,1765714847069,150.0,0.00011172,2]
[398475652,1765714847494,150.0,0.00011658,2]
[398475653,1765714847894,150.0,0.00012144,2]
[398475654,1765714848334,150.0,0.00012629,2]
[398475655,1765714848806,150.0,0.00013115,2]
[398475660,1765714939903,-388.45170793,0.00038274,120]
[398475661,1765714939935,-150.0,0.00038274,30]
[398475662,1765714939968,-150.0,0.00038274,30]
[398475663,1765714939996,-285.63070993,0.00038274,30]
[398475664,1765714940026,-3000.0,0.00038274,120]
[398475665,1765714940057,-217.97998,0.00038274,60]
[398475666,1765714940086,-913.46547612,0.00038274,30]
[398475667,1765714940115,-353.65548326,0.00038274,30]
[398475668,1765714940145,-494.18835202,0.00038274,120]
[398475669,1765714940174,-1160.94262614,0.00038274,120]
[398475670,1765714940201,-286.40255667,0.00038274,120]
[398475671,1765714940229,-1226.29557596,0.00038274,30]
[398475672,1765714940256,-947.68945067,0.00038274,120]
[398475673,1765714940285,-2197.88268423,0.00038274,30]
[398475674,1765714940313,-1004.08955052,0.00038274,120]
[398475675,1765714940342,-745.27091093,0.00038274,60]
[398475676,1765714940368,-953.47312089,0.00038274,120]
[398475677,1765714940393,-378.61270628,0.00038274,120]
[398475678,1765714940423,-317.31353622,0.00038274,30]
[398475679,1765714940451,-921.68243751,0.00038274,60]
[398475680,1765714940477,-305.65012484,0.00038274,120]
[398475681,1765714940502,-880.59987672,0.00038274,120]
[398475682,1765714940528,-719.99238232,0.00038274,120]
[398475683,1765714940554,-1071.45537251,0.00038274,30]
[398475684,1765714940581,-176.79521648,0.00038274,31]
[398475685,1765714940608,-485.21867477,0.00038274,30]
[398475686,1765714940636,-240.82074905,0.00038274,120]
[398475687,1765714940662,-252.01196932,0.00038274,120]
[398475688,1765714940690,-1541.23437305,0.00038274,120]
[398475689,1765714940718,-1199.4367551,0.00038274,30]
[398475690,1765714940746,-1059.39159511,0.00038274,120]
[398475691,1765714940789,-300.0,0.00038274,120]
[398475692,1765714940839,-577.14291837,0.00038274,120]
[398475693,1765714940884,-400.0,0.00038274,120]
[398475694,1765714940913,-1048.85500567,0.00038274,120]
[398475695,1765714940941,-709.7665292,0.00038274,120]
[398475696,1765714940968,-452.96973606,0.00038274,30]
[398475697,1765714940994,-2697.08756621,0.00038274,120]
[398475698,1765714941020,-1923.66813052,0.00038274,60]
[398475699,1765714941046,-1223.71563746,0.00038274,30]
[398475700,1765714941073,-2131.2819196,0.00038274,30]
[398475701,1765714941100,-543.63173711,0.00038274,120]
[398475702,1765714941127,-224.67474725,0.00038274,120]
[398475703,1765714941156,-329.64658259,0.00038274,120]
[398475704,1765714941183,-2327.20930715,0.00038274,60]
[398475705,1765714941210,-567.00044862,0.00038274,120]
[398475706,1765714941236,-202.03156329,0.00038274,60]
[398475707,1765714941501,-206.11131376,0.00038274,120]
[398475708,1765714941530,-455.29897434,0.00038274,60]
[398475709,1765714941558,-169.05643374,0.00038274,120]
[398475710,1765714941597,-552.63465004,0.00038274,120]
[398475711,1765714941625,-1588.2365882,0.00038274,120]
[398475712,1765714941654,-1052.57987414,0.00038274,120]
[398475713,1765714941682,-2153.22503324,0.00038274,30]
[398475714,1765714941711,-626.37746344,0.00038274,120]
[398475715,1765714941742,-813.95354712,0.00038274,60]
[398475716,1765714941778,-673.96184129,0.00038274,120]
[398475717,1765714941809,-320.56573035,0.00038274,120]
[398475718,1765714941839,-367.90405667,0.00038274,120]
[398475719,1765714941868,-357.88738408,0.00038274,120]
[398475720,1765714941898,-165.35294417,0.00038274,120]
[398475721,1765714941936,-1182.24938973,0.00038274,120]
[398475722,1765714941965,-1027.24157602,0.00038274,60]
[398475723,1765714941996,-177.52492565,0.00038274,120]
[398475724,1765714942026,-193.46744684,0.00038274,120]
[398475725,1765714942055,-507.9072858,0.00038274,120]
[398475726,1765714942083,-474.02977841,0.00038274,30]
[398475727,1765714942111,-1207.01627157,0.00038274,120]
[398475728,1765714942141,-627.45526489,0.00038274,120]
[398475729,1765714942172,-162.76855577,0.00038274,120]
[398475730,1765714942200,-1011.04954363,0.00038274,30]
[398475731,1765714942232,-1008.60474447,0.00038274,60]
[398475732,1765714942260,-535.77845048,0.00038274,60]
[398475733,1765714942287,-235.27121418,0.00038274,30]
[398475734,1765714942316,-248.07434001,0.00038274,31]
[398475735,1765714942343,-338.41139202,0.00038274,30]
[398475736,1765714942370,-742.39261513,0.00038274,120]
[398475737,1765714942398,-873.96386013,0.00038274,31]
[398475738,1765714942428,-1397.52967462,0.00038274,30]
[398475739,1765714942456,-155.16270462,0.00038274,30]
[398475740,1765714942482,-674.28889866,0.00038274,120]
[398475741,1765714942509,-767.60479782,0.00038274,30]
[398475742,1765714942535,-482.30872693,0.00038274,31]
[398475743,1765714942562,-258.60439241,0.00038274,35]
[398475744,1765714942588,-1516.17124128,0.00038274,20]
[398475745,1765714942614,-1000.32285545,0.00038274,120]
[398475746,1765714942644,-221.13721321,0.00038274,120]
[398475747,1765714942675,-360.78271281,0.00038274,120]
[398475748,1765714942703,-1499.0,0.00038274,64]
[398475749,1765714942732,-5496.28105885,0.00038274,120]
[398475750,1765714942765,-29225.46312815,0.00038274,30]
[398475751,1765714942792,-501.14878659,0.00038274,31]
[398475752,1765714942821,-1384.39412149,0.00038274,120]
[398475753,1765714942851,-41288.37204493,0.00038274,120]
[398475754,1765714942880,-379.0,0.00038274,120]
[398475755,1765714942908,-4379.0,0.00038274,120]
[398475756,1765714942934,-5602.0,0.00038274,120]
[398475757,1765714942960,-232.5218384,0.00038274,120]
[398475758,1765714942986,-162.627496,0.00038274,120]
[398475759,1765714943012,-285.51655,0.00038274,60]
[398475760,1765714943040,-1589.26683285,0.00038274,120]
[398475761,1765714943070,-1237.93024133,0.00038274,120]
[398475762,1765714943099,-99999.999999,0.00038274,30]
[398475763,1765714943126,-10000.98451103,0.00038274,45]
[398475764,1765714943158,-406.5668359,0.00038274,120]
[398475765,1765714943185,-814.1187088,0.00038274,120]
[398475766,1765714943217,-1621.0,0.00038274,120]
[398475767,1765714943245,-1033.0685777,0.00038274,31]
[398475768,1765714943273,-24753.90877969,0.00038274,35]
[398475769,1765714943301,-500.0,0.00038274,120]
[398475770,1765714943330,-500.0,0.00038274,120]
[398475771,1765714943359,-500.0,0.00038274,120]
[398475772,1765714943386,-500.0,0.00038274,120]
[398475773,1765714943414,-500.0,0.00038274,120]
[398475774,1765714943442,-500.0,0.00038274,120]
[398475775,1765714943470,-500.0,0.00038274,120]
[398475776,1765714943497,-500.0,0.00038274,120]
[398475777,1765714943525,-500.0,0.00038274,120]
[398475778,1765714943552,-500.0,0.00038274,120]
[398475779,1765714943580,-500.0,0.00038274,120]
[398475780,1765714943608,-500.0,0.00038274,120]
[398475781,1765714943636,-500.0,0.00038274,120]
[398475782,1765714943664,-360.76092773,0.00038274,120]
[398475783,1765714943691,-1242.0,0.00038274,31]
[398475784,1765714943718,-539.08227523,0.00038274,30]
[398475785,1765714943745,-3423.56886669,0.00038274,30]
[398475786,1765714943776,-500.0,0.00038274,120]
[398475787,1765714943802,-612.19,0.00038274,120]
[398475788,1765714943828,-1365.56954885,0.00038274,120]
[398475789,1765714943855,-277.61551153,0.00038274,120]
[398475790,1765714943882,-2189.0,0.00038274,60]
[398475791,1765714943909,-1000.0,0.00038274,31]
[398475792,1765714943936,-1000.0,0.00038274,31]
[398475793,1765714943963,-1053.65261554,0.00038274,31]
[398475794,1765714943990,-1000.0,0.00038274,31]
[398475795,1765714944019,-1000.0,0.00038274,31]
[398475796,1765714944048,-632.1882,0.00038274,30]
[398475797,1765714944076,-3286.0,0.00038274,30]
[398475798,1765714944105,-52136.06,0.00038274,60]
[398475799,1765714944133,-1001279.03400517,0.00038274,30]
[398475800,1765714944161,-300.0,0.00038274,120]
[398475801,1765714944193,-2627.24653584,0.00038274,120]
[398475802,1765714944404,-3619.2952319,0.00038274,120]
[398475803,1765714944434,-11451.33818828,0.00038274,30]
[398475804,1765714944463,-500.0,0.00038274,120]
[398475805,1765714944492,-500.0,0.00038274,120]
[398475806,1765714944519,-500.0,0.00038274,120]
[398475807,1765714944546,-500.0,0.00038274,120]
[398475808,1765714944573,-500.0,0.00038274,120]
[398475809,1765714944600,-500.0,0.00038274,120]
[398475810,1765714944627,-500.0,0.00038274,120]
[398475811,1765714944657,-500.0,0.00038274,120]
[398475812,1765714944685,-500.0,0.00038274,120]
[398475813,1765714944712,-500.0,0.00038274,120]
[398475814,1765714944738,-500.0,0.00038274,120]
[398475815,1765714944766,-500.0,0.00038274,120]
[398475816,1765714944793,-500.0,0.00038274,120]
[398475817,1765714944820,-643.51,0.00038274,120]
[398475818,1765714944846,-1313.38366647,0.00038274,120]
[398475819,1765714944872,-500.0,0.00038274,30]
[398475820,1765714944898,-500.0,0.00038274,30]
[398475821,1765714944923,-500.0,0.00038274,30]
[398475822,1765714944949,-36395.10634528,0.00038274,120]
[398475823,1765714944978,-39150.18339235,0.00038274,120]
[398475824,1765714945006,-355356.23486719,0.00038274,120]
[398475825,1765714945033,-5000.0,0.00038274,120]
[398475826,1765714945060,-500.0,0.00038274,120]
[398475827,1765714945087,-163.99652779,0.00038274,120]
[398475828,1765714945115,-169.63728256,0.00038274,120]
[398475829,1765714945142,-169.63728255,0.00038274,120]
[398475830,1765714945169,-341.21942983,0.00038274,20]
[398475831,1765714945195,-2000.0,0.00038274,120]
[398475832,1765714945222,-2000.0,0.00038274,120]
[398475833,1765714945251,-1794.38754828,0.00038274,120]
[398475834,1765714947484,1035.1,0.00038274,20]
[398475835,1765714969802,-1000.0,0.00018938,14]
[398475836,1765714969829,-1000.0,0.00018938,13]
[398475837,1765714969858,-1000.0,0.00018938,20]
[398475838,1765714969891,-300.0,0.00019316,10]
[398475839,1765714969920,-300.0,0.00019316,10]
[398475840,1765714969946,-300.0,0.00019316,10]
[398475841,1765714969973,-300.0,0.00019316,10]
[398475842,1765714970227,-300.0,0.00019316,10]
[398475843,1765714970260,-300.0,0.00019316,10]
[398475844,1765714970291,-300.0,0.00019316,10]
[398475845,1765714970323,-300.0,0.00019316,10]
[398475846,1765714970357,-300.0,0.00019316,10]
[398475847,1765714970385,-300.0,0.00019316,10]
[398475848,1765714970412,-300.0,0.00019316,10]
[398475849,1765714970440,-300.0,0.00019316,10]
[398475850,1765714970468,-300.0,0.00019316,10]
[398475851,1765714970496,-300.0,0.00019316,10]
[398475852,1765714970523,-300.0,0.00019316,10]
[398475853,1765714970549,-250.0,0.0002,10]
[398475854,1765714970574,-250.0,0.000201,10]
[398475855,1765714970600,-250.0,0.000202,10]
[398475856,1765714970626,-250.0,0.000203,10]
[398475857,1765714970653,-250.0,0.000204,10]
[398475858,1765714970678,-250.0,0.000205,10]
[398475859,1765714970705,-250.0,0.000206,10]
[398475860,1765714970730,-250.0,0.000207,10]
[398475861,1765714970761,-720.0,0.00020742,10]
[398475862,1765714970788,-250.0,0.000208,10]
[398475863,1765714970815,-250.0,0.000209,10]
[398475864,1765714970841,-250.0,0.00021,10]
[398475865,1765714970867,-250.0,0.000211,10]
[398475866,1765714970893,-200.0,0.00021203,30]
[398475867,1765714970919,-200.0,0.00021203,30]
[398475868,1765714970948,-200.0,0.00021203,30]
[398475869,1765714970975,-151.58,0.000215,60]